bitfinex/quotes_BTCUSD_20241028
["timestamp","ask_amount","ask_price","bid_price","bid_amount"]
[1730085515595,0.40421841,67893.0,67892.0,0.00256178]
[1730085516033,0.40421893,67893.0,67892.0,0.00256178]
[1730085516863,0.40422397,67893.0,67892.0,0.00256178]
[1730085521851,0.40622397,67893.0,67892.0,0.00256178]
[1730085522559,0.40425083,67893.0,67892.0,0.00256178]
[1730085525559,0.51479282,67893.0,67892.0,0.00256178]
[1730085527282,0.51532307,67893.0,67892.0,0.00256178]
[1730085528371,0.50427958,67893.0,67892.0,0.00256178]
[1730085528586,0.51533554,67893.0,67892.0,0.00256178]
[1730085532204,0.5153333,67893.0,67892.0,0.03256178]
[1730085533275,0.515328,67893.0,67892.0,0.03256178]
[1730085533932,0.40479433,67893.0,67892.0,0.20526178]
[1730085534171,0.49322014,67893.0,67892.0,0.20526178]
[1730085534587,0.40479433,67893.0,67892.0,0.20526178]
[1730085535743,0.40478909,67893.0,67892.0,0.20526178]
[1730085536187,0.15217747,67893.0,67892.0,0.35255378]
[1730085536397,0.11901935,67893.0,67892.0,0.35255378]
[1730085537030,0.10601935,67893.0,67892.0,0.35255378]
[1730085537248,0.09401935,67893.0,67892.0,0.35155378]
[1730085537665,0.09501935,67893.0,67892.0,0.35155378]
[1730085537998,0.09501935,67893.0,67892.0,0.20426178]
[1730085538812,0.09801935,67893.0,67892.0,0.20426178]
[1730085539454,0.05103626,67893.0,67892.0,0.20426178]
[1730085539668,0.09797318,67893.0,67892.0,0.20426178]
[1730085539892,0.09796422,67893.0,67892.0,0.35155378]
[1730085540103,0.09796422,67893.0,67892.0,0.20426178]
[1730085540765,0.09796422,67893.0,67892.0,0.35155378]
[1730085540963,0.09796422,67893.0,67892.0,0.20426178]
[1730085541368,0.0963859,67893.0,67892.0,0.20426178]
[1730085541576,0.09778836,67893.0,67892.0,0.20426178]
[1730085542051,0.09778836,67893.0,67892.0,0.35155378]
[1730085542268,0.06189397,67893.0,67892.0,0.62696734]
[1730085542469,0.04944753,67893.0,67892.0,0.54005759]
[1730085542698,0.035644,67893.0,67892.0,0.54005759]
[1730085542915,0.04644574,67893.0,67892.0,0.54005759]
[1730085543397,0.04544574,67893.0,67892.0,0.54005759]
[1730085543627,0.04544574,67893.0,67892.0,0.54205759]
[1730085545501,0.031644,67893.0,67892.0,0.54205759]
[1730085546358,0.001644,67893.0,67892.0,0.54205759]
[1730085551467,0.001644,67893.0,67892.0,0.63396734]
[1730085564268,0.04543465,67893.0,67892.0,0.63396734]
[1730085565313,0.04543779,67893.0,67892.0,0.63396734]
[1730085567689,0.04544755,67893.0,67892.0,0.63396734]
[1730085569397,0.0454516,67893.0,67892.0,0.63396734]
[1730085572162,0.06757095,67893.0,67892.0,0.63396734]
[1730085577428,0.0454516,67893.0,67892.0,0.63396734]
[1730085577860,0.06757131,67893.0,67892.0,0.63396734]
[1730085579271,0.06757131,67893.0,67892.0,0.82587709]
[1730085579272,0.0454516,67893.0,67892.0,0.82587709]
[1730085579482,0.0454516,67893.0,67892.0,0.87673969]
[1730085579701,0.001646,67898.0,67897.0,0.068]
[1730085579932,0.001646,67898.0,67897.0,0.72639456]
[1730085580384,0.001646,67898.0,67897.0,0.81830431]
[1730085580838,0.001646,67898.0,67897.0,0.8622175]
[1730085581313,0.001646,67898.0,67897.0,0.81830431]
[1730085581521,0.001646,67898.0,67897.0,0.86221393]
[1730085582195,0.001646,67898.0,67897.0,0.81830431]
[1730085582410,0.001646,67904.0,67903.0,0.5719875]
[1730085582624,0.001646,67904.0,67903.0,0.72249131]
[1730085583261,0.001646,67904.0,67903.0,0.82249131]
[1730085583478,0.001646,67904.0,67903.0,0.73058156]
[1730085583948,0.001646,67904.0,67903.0,0.73358156]
[1730085585324,0.001646,67904.0,67903.0,0.73458156]
[1730085586789,0.001646,67904.0,67903.0,0.65688156]
[1730085589355,0.001646,67904.0,67903.0,0.65388156]
[1730085589800,0.001646,67904.0,67903.0,0.65588156]
[1730085590001,0.001646,67904.0,67903.0,0.65288156]
[1730085590244,0.001646,67904.0,67903.0,0.65388156]
[1730085590459,0.001646,67904.0,67903.0,0.65688156]
[1730085590679,0.001646,67904.0,67903.0,0.65588156]
[1730085591099,0.001646,67904.0,67903.0,0.65688156]
[1730085591781,0.001646,67904.0,67903.0,0.56497181]
[1730085591990,0.001646,67904.0,67903.0,0.65688156]
[1730085601405,0.001646,67904.0,67903.0,0.56497181]
[1730085601608,0.001646,67904.0,67903.0,0.65688156]
[1730085603082,0.001646,67904.0,67903.0,0.33677181]
[1730085603326,0.04542821,67904.0,67903.0,0.43368156]
[1730085604108,0.04542821,67904.0,67903.0,0.43268156]
[1730085604280,0.04542821,67904.0,67903.0,0.42968156]
[1730085604481,0.04542821,67904.0,67903.0,0.45568156]
[1730085604686,0.04542821,67904.0,67903.0,0.46068156]
[1730085604889,0.031646,67904.0,67903.0,0.72679131]
[1730085605242,0.031646,67904.0,67903.0,0.82979131]
[1730085605442,0.031646,67904.0,67903.0,0.83079131]
[1730085605682,0.031646,67904.0,67903.0,0.83579131]
[1730085605879,0.031646,67904.0,67903.0,0.83479131]
[1730085606088,0.001646,67912.0,67911.0,0.4990705]
[1730085606301,0.001646,67912.0,67911.0,0.82117431]
[1730085607391,0.001646,67912.0,67911.0,0.82417431]
[1730085607616,0.001646,67912.0,67911.0,0.82117431]
[1730085608039,0.001646,67912.0,67911.0,0.82417431]
[1730085608282,0.001646,67912.0,67911.0,0.82117431]
[1730085608784,0.001646,67912.0,67911.0,0.82217431]
[1730085609218,0.001646,67912.0,67911.0,0.82117431]
[1730085609428,0.0454479,67912.0,67911.0,0.82117431]
[1730085609631,0.0454479,67912.0,67911.0,0.82217431]
[1730085610049,0.0454479,67912.0,67911.0,0.82517431]
[1730085610258,0.0454479,67912.0,67911.0,0.82117431]
[1730085610466,0.0454479,67912.0,67911.0,0.72926456]
[1730085610682,0.0454479,67912.0,67911.0,0.73226456]
[1730085610911,0.031646,67912.0,67911.0,0.73226456]
[1730085611124,0.04544725,67912.0,67911.0,0.73226456]
[1730085611335,0.04544725,67912.0,67911.0,0.82417431]
[1730085611543,0.04544725,67912.0,67911.0,0.82517431]
[1730085614341,0.031646,67912.0,67911.0,0.82517431]
[1730085614569,0.001644,67917.0,67916.0,0.31524]
[1730085614782,0.001644,67917.0,67916.0,0.72955356]
[1730085615264,0.001644,67917.0,67916.0,0.73455356]
[1730085615469,0.001644,67917.0,67916.0,0.73655356]
[1730085615932,0.001644,67917.0,67916.0,0.73755356]
[1730085616138,0.001644,67917.0,67916.0,0.73555356]
[1730085616557,0.001644,67917.0,67916.0,0.91221331]
[1730085616759,0.001644,67917.0,67916.0,0.91021331]
[1730085617186,0.001644,67917.0,67916.0,0.91321331]
[1730085618280,0.000822,67929.0,67928.0,0.62999875]
[1730085618511,0.000822,67929.0,67928.0,0.78050256]
[1730085619175,0.00680514,67932.0,67928.0,0.78050256]
[1730085619176,0.00680514,67932.0,67931.0,0.282208]
[1730085619380,0.00680514,67932.0,67931.0,0.46571181]
[1730085619381,1e-06,67932.0,67931.0,0.46571181]
[1730085619623,1e-06,67932.0,67931.0,0.60099656]
[1730085619829,1e-06,67932.0,67931.0,0.46771181]
[1730085620673,1e-06,67932.0,67931.0,0.59899656]
[1730085620901,1e-06,67932.0,67931.0,0.46571181]
[1730085621945,1e-06,67932.0,67931.0,0.46971181]
[1730085622794,1e-06,67932.0,67931.0,0.69738311]
[1730085622991,1e-06,67932.0,67931.0,0.46971181]
[1730085623854,1e-06,67932.0,67931.0,0.46871181]
[1730085624079,1e-06,67932.0,67931.0,0.46671181]
[1730085624311,1e-06,67932.0,67931.0,0.46971181]
[1730085626853,1e-06,67932.0,67931.0,0.60799656]
[1730085628020,1e-06,67932.0,67931.0,0.60999656]
[1730085628229,1e-06,67932.0,67931.0,0.60799656]
[1730085628612,1e-06,67932.0,67931.0,0.70739656]
[1730085629336,1e-06,67932.0,67931.0,0.78489656]
[1730085631514,1e-06,67932.0,67931.0,0.78989656]
[1730085631723,1e-06,67932.0,67931.0,0.79489656]
[1730085632686,1e-06,67932.0,67931.0,0.66161181]
[1730085634137,1e-06,67932.0,67931.0,0.65761181]
[1730085634337,1e-06,67932.0,67931.0,0.66161181]
[1730085634776,1e-06,67932.0,67931.0,0.65861181]
[1730085635006,1e-06,67932.0,67931.0,0.65761181]
[1730085635645,1e-06,67932.0,67931.0,0.66061181]
[1730085636279,1e-06,67932.0,67931.0,0.66161181]
[1730085636490,1e-06,67932.0,67931.0,0.84522645]
[1730085637106,1e-06,67932.0,67931.0,0.84236021]
[1730085639818,1e-06,67932.0,67931.0,0.84436021]
[1730085645277,1e-06,67932.0,67931.0,0.87387021]
[1730085645457,1e-06,67932.0,67931.0,0.84436021]
[1730085647296,1e-06,67932.0,67931.0,0.89003559]
[1730085651200,0.000822,67941.0,67940.0,0.215188]
[1730085651408,0.000822,67941.0,67940.0,0.69792483]
[1730085651409,0.02143325,67941.0,67940.0,0.69792483]
[1730085651609,0.02143325,67941.0,67940.0,0.69498183]
[1730085651996,0.00762614,67941.0,67940.0,0.69498183]
[1730085652407,0.000822,67941.0,67940.0,0.69598183]
[1730085653664,0.000822,67941.0,67940.0,0.69898183]
[1730085655842,0.000822,67941.0,67940.0,0.69468592]
[1730085656035,0.000822,67941.0,67940.0,0.70546827]
[1730085658551,0.000822,67941.0,67940.0,0.77098966]
[1730085659389,0.000822,67941.0,67940.0,0.976801]
[1730085659593,0.000822,67941.0,67940.0,0.93112562]
[1730085659773,0.000822,67941.0,67940.0,1.01182562]
[1730085660025,0.000822,67941.0,67940.0,1.06257697]
[1730085660263,0.000822,67941.0,67940.0,0.98248398]
[1730085660466,0.000822,67941.0,67940.0,0.87267465]
[1730085661561,0.000822,67941.0,67940.0,0.98248745]
[1730085662619,0.000822,67941.0,67940.0,0.9367361]
[1730085665830,0.000822,67941.0,67940.0,0.87266893]
[1730085666044,0.000822,67941.0,67940.0,0.87264851]
[1730085672132,0.000822,67941.0,67940.0,0.67825152]
[1730085672366,0.000822,67941.0,67940.0,0.72431321]
[1730085672367,0.08792614,67941.0,67940.0,0.72431321]
[1730085672570,0.08792614,67941.0,67940.0,0.88202757]
[1730085672802,0.08792614,67941.0,67940.0,0.79022025]
[1730085673450,0.08792614,67941.0,67940.0,0.88202757]
[1730085674082,0.000822,67941.0,67940.0,0.88202757]
[1730085674508,0.000822,67941.0,67940.0,0.81612053]
[1730085675815,0.000822,67941.0,67940.0,0.90398825]
[1730085676747,0.000822,67941.0,67940.0,0.90481025]
[1730085677980,0.000822,67941.0,67940.0,0.81694253]
[1730085681665,0.000822,67941.0,67940.0,0.92676137]
[1730085684427,0.000822,67941.0,67940.0,0.97257178]
[1730085684994,0.000822,67941.0,67940.0,0.9728464]
[1730085685647,0.000822,67941.0,67940.0,0.62850955]
[1730085685877,0.000822,67941.0,67940.0,0.51019543]
[1730085685878,0.19793071,67941.0,67940.0,0.51019543]
[1730085686096,0.19793071,67941.0,67940.0,0.4662179]
[1730085686538,0.19793071,67941.0,67940.0,0.4652179]
[1730085686773,0.19793071,67941.0,67940.0,0.4632179]
[1730085686993,0.19793071,67941.0,67940.0,0.4652179]
[1730085687415,0.19793071,67941.0,67940.0,0.4632179]
[1730085687619,0.19793071,67941.0,67940.0,0.4652179]
[1730085688055,0.19793071,67941.0,67940.0,0.4642179]
[1730085688460,0.19793071,67941.0,67940.0,0.4652179]
[1730085689164,0.22000613,67941.0,67940.0,0.18671409]
[1730085689381,0.23104457,67941.0,67940.0,0.18171409]
[1730085689516,0.24723484,67941.0,67940.0,0.18101]
[1730085689714,0.24723484,67941.0,67940.0,0.18171409]
[1730085690186,0.24723129,67941.0,67940.0,0.17901]
[1730085690391,0.24723129,67941.0,67940.0,0.18101]
[1730085690915,0.24723129,67941.0,67940.0,0.17971409]
[1730085691072,0.24723129,67941.0,67940.0,0.18071409]
[1730085691418,0.24723129,67941.0,67940.0,0.17871409]
[1730085691528,0.24723129,67941.0,67940.0,0.18171409]
[1730085691931,0.24723129,67941.0,67940.0,0.17871409]
[1730085693163,0.24823129,67941.0,67940.0,0.17971409]
[1730085693567,0.24823129,67941.0,67940.0,0.17871409]
[1730085694010,0.18751825,67941.0,67940.0,0.17871409]
[1730085694259,0.23713119,67941.0,67940.0,0.17871409]
[1730085694477,0.23197698,67941.0,67940.0,0.17871409]
[1730085694661,0.23436729,67941.0,67940.0,0.17871409]
[1730085696257,0.23436481,67941.0,67940.0,0.17801]
[1730085696479,0.23436481,67941.0,67940.0,0.17871409]
[1730085696925,0.23436481,67941.0,67940.0,0.17801]
[1730085697139,0.23436481,67941.0,67940.0,0.17871409]
[1730085697989,0.23435415,67941.0,67940.0,0.17871409]
[1730085698847,0.23435415,67941.0,67940.0,0.17801]
[1730085699070,0.23435415,67941.0,67940.0,0.17871409]
[1730085699306,0.23435415,67941.0,67940.0,0.17801]
[1730085699553,0.23435415,67941.0,67940.0,0.17871409]
[1730085700193,0.23435415,67941.0,67940.0,0.17801]
[1730085700417,0.32616147,67941.0,67940.0,0.030822]
[1730085700647,0.39531427,67941.0,67940.0,0.030822]
[1730085701730,0.4871184,67941.0,67940.0,0.030822]
[1730085702164,0.39731108,67941.0,67940.0,0.030822]
[1730085702598,0.39731108,67941.0,67940.0,0.000822]
[1730085703256,0.39631108,67941.0,67940.0,0.000822]
[1730085703457,0.39931108,67941.0,67940.0,0.000822]
[1730085704127,0.39731108,67941.0,67940.0,0.000822]
[1730085704774,0.40131108,67941.0,67940.0,0.000822]
[1730085705400,0.35172507,67941.0,67940.0,0.000822]
[1730085705640,0.40129154,67941.0,67940.0,0.030822]
[1730085705880,0.35172012,67941.0,67940.0,0.030822]
[1730085706094,0.40129154,67941.0,67940.0,0.030822]
[1730085706727,0.49309886,67941.0,67940.0,0.030822]
[1730085707210,0.40129154,67941.0,67940.0,0.030822]
[1730085707707,0.40129154,67941.0,67940.0,0.000822]
[1730085708682,0.25410554,67941.0,67940.0,0.000822]
[1730085709357,0.25410694,67941.0,67940.0,0.000822]
[1730085709572,0.25410694,67941.0,67940.0,0.030822]
[1730085709787,0.25410694,67941.0,67940.0,0.17801]
[1730085710099,0.25410694,67941.0,67940.0,0.030822]
[1730085710539,0.40129294,67941.0,67940.0,0.030822]
[1730085712562,0.40129294,67941.0,67940.0,0.000822]
[1730085712775,0.25410694,67941.0,67940.0,0.000822]
[1730085712992,0.25410694,67941.0,67940.0,0.26981732]
[1730085713222,0.07521483,67941.0,67940.0,0.26981732]
[1730085713454,0.02839598,67941.0,67940.0,0.44832113]
[1730085713661,0.02839598,67941.0,67940.0,0.44902522]
[1730085713871,0.02139598,67941.0,67940.0,0.44902522]
[1730085714085,0.02239598,67941.0,67940.0,0.44902522]
[1730085714774,0.02139598,67941.0,67940.0,0.44902522]
[1730085714977,0.02239598,67941.0,67940.0,0.44902522]
[1730085716861,0.02241332,67941.0,67940.0,0.44902522]
[1730085717067,0.02241332,67941.0,67940.0,0.44832113]
[1730085717310,0.02241332,67941.0,67940.0,0.44902522]
[1730085719314,0.04447952,67941.0,67940.0,0.44902522]
[1730085719476,0.02241332,67941.0,67940.0,0.44902522]
[1730085720178,0.02141332,67941.0,67940.0,0.44902522]
[1730085720378,0.02141332,67941.0,67940.0,0.45102522]
[1730085720589,0.000822,67941.0,67940.0,0.45002522]
[1730085720811,0.02141706,67941.0,67940.0,0.45002522]
[1730085721024,0.02141706,67941.0,67940.0,0.45102522]
[1730085721235,0.02141706,67941.0,67940.0,0.44902522]
[1730085721449,0.02141706,67941.0,67940.0,0.45002522]
[1730085721658,0.02141706,67941.0,67940.0,0.45102522]
[1730085721841,0.02141706,67941.0,67940.0,0.45002522]
[1730085723585,0.000822,67941.0,67940.0,0.45002522]
[1730085723787,0.02141382,67941.0,67940.0,0.45002522]
[1730085727258,0.000822,67941.0,67940.0,0.45002522]
[1730085727470,0.02141069,67941.0,67940.0,0.45002522]
[1730085729281,0.02141069,67941.0,67940.0,0.44902522]
[1730085729709,0.02141069,67941.0,67940.0,0.45102522]
[1730085729967,0.02141069,67941.0,67940.0,0.45002522]
[1730085730181,0.02141069,67941.0,67940.0,0.45202522]
[1730085730387,0.02141069,67941.0,67940.0,0.45102522]
[1730085730806,0.02141069,67941.0,67940.0,0.45202522]
[1730085732828,0.02141069,67941.0,67940.0,0.3602179]
[1730085733242,0.02380054,67941.0,67940.0,0.003822]
[1730085733460,0.02380054,67941.0,67940.0,0.18171409]
[1730085733461,0.05688199,67941.0,67940.0,0.18171409]
[1730085733683,0.05688199,67941.0,67940.0,0.18001]
[1730085733979,0.05688199,67941.0,67940.0,0.18101]
[1730085734183,0.05688613,67941.0,67940.0,0.18101]
[1730085734359,0.05688673,67941.0,67940.0,0.18101]
[1730085734565,0.05688673,67941.0,67940.0,0.17871409]
[1730085735174,0.05688673,67941.0,67940.0,0.17801]
[1730085735825,0.05788673,67941.0,67940.0,0.17801]
[1730085736221,0.0716751,67941.0,67940.0,0.17801]
[1730085736431,0.0726751,67941.0,67940.0,0.17871409]
[1730085736636,0.0756751,67941.0,67940.0,0.17871409]
[1730085737063,0.0756751,67941.0,67940.0,0.17801]
[1730085737270,0.0706751,67941.0,67940.0,0.17801]
[1730085737497,0.0796751,67941.0,67940.0,0.17801]
[1730085737989,0.05487026,67941.0,67940.0,0.17801]
[1730085738112,0.06590234,67941.0,67940.0,0.17871409]
[1730085738321,0.07969402,67941.0,67940.0,0.17871409]
[1730085738749,0.07969402,67941.0,67940.0,0.17801]
[1730085738750,0.07469402,67941.0,67940.0,0.17801]
[1730085738951,0.07069402,67941.0,67940.0,0.17801]
[1730085739209,0.07069402,67941.0,67940.0,0.17871409]
[1730085739409,0.08169402,67941.0,67940.0,0.17971409]
[1730085740076,0.08170493,67941.0,67940.0,0.17871409]
[1730085740499,0.08870493,67941.0,67940.0,0.17971409]
[1730085741865,0.06389352,67941.0,67940.0,0.27152141]
[1730085742067,0.08873181,67941.0,67940.0,0.27152141]
[1730085742353,0.08634196,67941.0,67940.0,0.45502522]
[1730085742569,0.07254291,67941.0,67940.0,0.45502522]
[1730085742782,0.06150367,67941.0,67940.0,0.45502522]
[1730085742992,0.05450367,67941.0,67940.0,0.45402522]
[1730085743439,0.05654626,67941.0,67940.0,0.45402522]
[1730085743650,0.05654626,67941.0,67940.0,0.45602522]
[1730085743882,0.05454626,67941.0,67940.0,0.45402522]
[1730085744290,0.05454626,67941.0,67940.0,0.45602522]
[1730085745195,0.05454626,67941.0,67940.0,0.45702522]
[1730085745407,0.00762614,67941.0,67940.0,0.45702522]
[1730085745615,0.05455695,67941.0,67940.0,0.45702522]
[1730085749299,0.04351382,67941.0,67940.0,0.45702522]
[1730085749514,0.05455618,67941.0,67940.0,0.45702522]
[1730085750142,0.05455633,67941.0,67940.0,0.45702522]
[1730085750556,0.05408207,67941.0,67940.0,0.45702522]
[1730085753010,0.00034774,67941.0,67940.0,0.45702522]
[1730085753207,0.05408322,67941.0,67940.0,0.45702522]
[1730085756684,0.03623749,67941.0,67940.0,0.45702522]
[1730085756937,0.05408463,67941.0,67940.0,0.45702522]
[1730085758849,0.05408463,67941.0,67940.0,0.45602522]
[1730085759061,0.05408463,67941.0,67940.0,0.45402522]
[1730085759329,0.05408463,67941.0,67940.0,0.45702522]
[1730085759921,0.05408463,67941.0,67940.0,0.45202522]
[1730085762023,0.05408518,67941.0,67940.0,0.45202522]
[1730085762389,0.05408539,67941.0,67940.0,0.45202522]
[1730085764345,0.00034774,67941.0,67940.0,0.45202522]
[1730085764541,0.05408562,67941.0,67940.0,0.45202522]
[1730085767975,0.0540915,67941.0,67940.0,0.45202522]
[1730085768213,0.0540915,67941.0,67940.0,0.45284722]
[1730085771876,0.05411098,67941.0,67940.0,0.45284722]
[1730085774499,0.06792576,67941.0,67940.0,0.45284722]
[1730085775660,0.06792576,67941.0,67940.0,0.3610399]
[1730085777014,0.06792576,67941.0,67940.0,0.18153609]
[1730085777248,0.06792576,67941.0,67940.0,0.176832]
[1730085777470,0.06792576,67941.0,67940.0,0.17553609]
[1730085777712,0.07031497,67941.0,67940.0,0.17753609]
[1730085778188,0.07031497,67941.0,67940.0,0.17653609]
[1730085778412,0.07031614,67941.0,67940.0,0.17653609]
[1730085778673,0.07031614,67941.0,67940.0,0.17453609]
[1730085779153,0.03864802,67941.0,67940.0,0.17453609]
[1730085779393,0.07031367,67941.0,67940.0,0.17553609]
[1730085780522,0.07031367,67941.0,67940.0,0.17453609]
[1730085781419,0.07131367,67941.0,67940.0,0.17453609]
[1730085781651,0.07131218,67941.0,67940.0,0.17453609]
[1730085783336,0.07131218,67941.0,67940.0,0.4442399]
[1730085783337,0.05750172,67941.0,67940.0,0.4442399]
[1730085783568,0.05750172,67941.0,67940.0,0.4492399]
[1730085783814,0.04406295,67941.0,67940.0,0.4492399]
[1730085784060,0.02196383,67941.0,67940.0,0.58504674]
[1730085784295,0.02095869,67941.0,67940.0,0.54104722]
[1730085784533,0.00715188,67941.0,67940.0,0.6080465]
[1730085784762,0.00715188,67941.0,67940.0,0.54404722]
[1730085784987,0.00715188,67941.0,67940.0,0.54104722]
[1730085785201,0.00715188,67941.0,67940.0,0.5870227]
[1730085785202,0.00034774,67941.0,67940.0,0.5870227]
[1730085785439,0.00034774,67941.0,67940.0,0.54404722]
[1730085785440,0.00715188,67941.0,67940.0,0.54404722]
[1730085785910,0.00715188,67941.0,67940.0,0.58801875]
[1730085786399,0.00034774,67941.0,67940.0,0.62644722]
[1730085786621,0.00034774,67941.0,67940.0,0.6924465]
[1730085786859,0.00034774,67941.0,67940.0,0.62644722]
[1730085788710,0.00034774,67941.0,67940.0,0.67040578]
[1730085791005,0.00034774,67941.0,67940.0,0.67040091]
[1730085791738,0.00034774,67941.0,67940.0,0.62644722]
[1730085794073,0.00034774,67941.0,67940.0,0.72644722]
[1730085797257,0.00034774,67941.0,67940.0,0.73144722]
[1730085797472,0.00034774,67941.0,67940.0,0.79737776]
[1730085797750,0.00034774,67941.0,67940.0,0.9595474]
[1730085798137,0.00034774,67941.0,67940.0,0.9545474]
[1730085798363,0.00034774,67941.0,67940.0,0.9595474]
[1730085799370,0.00034774,67941.0,67940.0,0.79737776]
[1730085800859,0.00034774,67941.0,67940.0,0.73144722]
[1730085802860,0.00034774,67941.0,67940.0,0.6396399]
[1730085803075,0.00034774,67941.0,67940.0,0.82325454]
[1730085804774,0.00034774,67941.0,67940.0,0.86716607]
[1730085809933,0.00034774,67941.0,67940.0,0.86716094]
[1730085810941,0.00034774,67941.0,67940.0,0.86715993]
[1730085812456,0.00034774,67941.0,67940.0,0.68354529]
[1730085812664,0.00034774,67941.0,67940.0,0.86715993]
[1730085814064,0.00034774,67941.0,67940.0,0.82325454]
[1730085814281,0.00034774,67941.0,67940.0,0.86715971]
[1730085815620,0.00034774,67941.0,67940.0,0.86515971]
[1730085816053,0.000822,67948.0,67947.0,0.30669909]
[1730085816285,0.000822,67948.0,67947.0,0.85390964]
[1730085816563,0.000822,67948.0,67947.0,0.81001754]
[1730085816779,0.000822,67948.0,67947.0,0.81201754]
[1730085817191,0.000822,67948.0,67947.0,0.81701754]
[1730085817443,0.001668,67949.0,67948.0,0.32369709]
[1730085817444,1e-06,67949.0,67948.0,0.32369709]
[1730085817680,1e-06,67949.0,67948.0,0.91625357]
[1730085818817,1e-06,67949.0,67948.0,0.91425357]
[1730085819600,1e-06,67949.0,67948.0,0.927214]
[1730085819770,1e-06,67949.0,67948.0,0.69841076]
[1730085820171,1e-06,67949.0,67948.0,0.69045033]
[1730085820376,1e-06,67949.0,67948.0,0.75627214]
[1730085820590,1e-06,67949.0,67948.0,0.69145033]
[1730085823140,1e-06,67949.0,67948.0,0.91916627]
[1730085824465,1e-06,67949.0,67948.0,0.85334446]
[1730085824669,1e-06,67949.0,67948.0,0.9191281]
[1730085825365,0.001668,67960.0,67959.0,0.38237309]
[1730085825560,0.001668,67961.0,67960.0,0.32167109]
[1730085825731,0.001668,67961.0,67960.0,0.4721749]
[1730085825936,0.00347214,67965.0,67964.0,0.18866209]
[1730085826142,0.00347214,67965.0,67964.0,0.64578054]
[1730085828249,0.00347214,67965.0,67964.0,0.64678054]
[1730085828943,0.00347214,67965.0,67964.0,0.64878054]
[1730085829362,0.00347214,67965.0,67964.0,0.55697322]
[1730085829695,0.00347214,67965.0,67964.0,0.64878054]
[1730085830521,0.00347214,67965.0,67964.0,0.55697322]
[1730085830730,0.00347214,67965.0,67964.0,0.64878054]
[1730085833478,0.00347214,67965.0,67964.0,0.74478054]
[1730085835493,0.00347214,67965.0,67964.0,0.65297322]
[1730085836138,0.00347214,67965.0,67964.0,0.54697322]
[1730085836360,0.00347214,67965.0,67964.0,0.55197322]
[1730085836975,0.00511614,67965.0,67964.0,0.55197322]
[1730085837578,0.00511614,67965.0,67964.0,0.54997322]
[1730085837783,0.00511614,67965.0,67964.0,0.55097322]
[1730085838197,0.00511614,67965.0,67964.0,0.55197322]
[1730085838416,0.00511614,67965.0,67964.0,0.55397322]
[1730085838618,0.00511614,67965.0,67964.0,0.55297322]
[1730085838956,0.00511614,67965.0,67964.0,0.55397322]
[1730085841057,0.00511614,67965.0,67964.0,0.83828054]
[1730085843697,0.00511614,67965.0,67964.0,0.74647322]
[1730085843913,0.00511614,67965.0,67964.0,0.83828054]
[1730085845159,0.00511614,67965.0,67964.0,0.6546659]
[1730085845283,0.00511614,67965.0,67964.0,0.66797322]
[1730085845485,0.00511614,67965.0,67964.0,0.75978054]
[1730085845708,0.00511614,67965.0,67964.0,0.66797322]
[1730085846543,0.00511614,67965.0,67964.0,0.75978054]
[1730085847311,0.00511614,67965.0,67964.0,0.66797322]
[1730085848210,0.00511614,67965.0,67964.0,0.75978054]
[1730085848626,0.00511614,67965.0,67964.0,0.76060254]
[1730085848999,0.00511614,67965.0,67964.0,0.5769879]
[1730085849366,0.00511614,67965.0,67964.0,0.53679522]
[1730085850576,0.00511614,67965.0,67964.0,0.55979522]
[1730085851673,0.00511614,67965.0,67964.0,0.55579522]
[1730085851882,0.00511614,67965.0,67964.0,0.55479522]
[1730085852083,0.00511614,67965.0,67964.0,0.55779522]
[1730085852439,0.00511614,67965.0,67964.0,0.55979522]
[1730085853313,0.00511614,67965.0,67964.0,0.55879522]
[1730085853726,0.00511614,67965.0,67964.0,0.55979522]
[1730085856793,0.00511614,67965.0,67964.0,0.5708182]
[1730085863588,0.00511614,67965.0,67964.0,0.61469212]
[1730085866494,0.00511614,67965.0,67964.0,0.5708182]
[1730085867606,0.00511614,67965.0,67964.0,0.63662908]
[1730085868481,0.00511614,67965.0,67964.0,0.79872421]
[1730085868696,0.00511614,67965.0,67964.0,0.73291333]
[1730085870216,0.00511614,67965.0,67964.0,0.82066117]
[1730085871729,0.00511614,67965.0,67964.0,0.73291333]
[1730085873734,0.00511614,67965.0,67964.0,0.77869113]
[1730085876021,0.00511614,67965.0,67964.0,0.77769113]
[1730085876361,0.00511614,67965.0,67964.0,0.77369113]
[1730085876813,0.00511614,67965.0,67964.0,0.77669113]
[1730085885546,0.00511614,67965.0,67964.0,0.88637593]
[1730085887089,0.18551614,67965.0,67964.0,0.75682903]
[1730085887288,0.1993258,67965.0,67964.0,0.4609879]
[1730085887515,0.18551614,67965.0,67964.0,0.50497951]
[1730085887743,0.19932204,67965.0,67964.0,0.50497951]
[1730085887958,0.19932204,67965.0,67964.0,0.4609879]
[1730085888181,0.19932204,67965.0,67964.0,0.4589879]
[1730085888407,0.19932204,67965.0,67964.0,0.4609879]
[1730085888616,0.19932204,67965.0,67964.0,0.4599879]
[1730085889086,0.19932204,67965.0,67964.0,0.4609879]
[1730085889549,0.19932204,67965.0,67964.0,0.4599879]
[1730085889740,0.19932204,67965.0,67964.0,0.4589879]
[1730085889994,0.19932204,67965.0,67964.0,0.4609879]
[1730085890421,0.19932204,67965.0,67964.0,0.4589879]
[1730085891067,0.19932204,67965.0,67964.0,0.4609879]
[1730085891272,0.18551614,67965.0,67964.0,0.4609879]
[1730085891504,0.19931451,67965.0,67964.0,0.4609879]
[1730085895523,0.19930836,67965.0,67964.0,0.4609879]
[1730085897901,0.19930836,67965.0,67964.0,0.4589879]
[1730085898103,0.19930836,67965.0,67964.0,0.4579879]
[1730085898312,0.19930836,67965.0,67964.0,0.4589879]
[1730085898527,0.17930836,67965.0,67964.0,0.4589879]
[1730085898742,0.17930836,67965.0,67964.0,0.4579879]
[1730085899821,0.17930836,67965.0,67964.0,0.4609879]
[1730085900717,0.17930836,67965.0,67964.0,0.4589879]
[1730085900939,0.17930836,67965.0,67964.0,0.4609879]
[1730085901388,0.17930506,67965.0,67964.0,0.4609879]
[1730085902253,0.17930506,67965.0,67964.0,0.4599879]
[1730085902474,0.08060506,67965.0,67964.0,0.4609879]
[1730085902888,0.01378892,67965.0,67964.0,0.4599879]
[1730085903304,0.01378892,67965.0,67964.0,0.4609879]
[1730085905074,0.0936,67968.0,67965.0,0.295956]
[1730085905293,0.0936,67968.0,67965.0,0.53826713]
[1730085905546,0.0330996,67966.0,67965.0,0.53826713]
[1730085905756,0.0330996,67966.0,67965.0,0.54397122]
[1730085907042,0.0330996,67966.0,67965.0,0.54497122]
[1730085907455,0.03310069,67966.0,67965.0,0.54497122]
[1730085907705,0.03310069,67966.0,67965.0,0.54597122]
[1730085908983,0.03310141,67966.0,67965.0,0.54597122]
[1730085911286,0.03310141,67966.0,67965.0,0.54497122]